fUSD/lending_fUSD_20250623
["ID","MTS","AMOUNT","RATE_DAILY","PERIOD"]
[367216017,1750703454779,-1219.17,0.00023156,2]
[367216018,1750703454789,-630.84,0.00023156,2]
[367216019,1750703454798,-1059.99,0.00023156,2]
[367216020,1750703454808,-8511.08,0.00023156,2]
[367216021,1750703454817,-490.0,0.00023156,2]
[367216022,1750703454827,-784.77,0.00023156,2]
[367216023,1750703454836,-490.0,0.00023156,2]
[367216024,1750703454845,-507.95,0.00023156,2]
[367216025,1750703454855,-742.98,0.00023156,2]
[367216026,1750703454864,-1021.87,0.00023156,2]
[367216027,1750703454873,-998.88,0.00023156,2]
[367216028,1750703454883,-988.23,0.00023156,2]
[367216029,1750703454892,-1161.51,0.00023156,2]
[367216030,1750703454904,-892.04,0.00023156,2]
[367216031,1750703454913,-490.0,0.00023156,2]
[367216032,1750703454923,-672.29,0.00023156,2]
[367216033,1750703454932,-490.0,0.00023156,2]
[367216034,1750703454942,-895.8,0.00023156,2]
[367216035,1750703454951,-1796.74,0.00023156,2]
[367216036,1750703454960,-1497.0,0.00023156,2]
[367216037,1750703454970,-440.0,0.00023156,2]
[367216038,1750703454979,-1158.61,0.00023156,2]
[367216039,1750703454988,-1124.38,0.00023156,2]
[367216040,1750703454998,-785.72,0.00023156,2]
[367216041,1750703455007,-547.73779998,0.00023156,2]
[367216042,1750703455018,-2449.71,0.00023156,2]
[367216043,1750703455027,-300.0,0.00023156,2]
[367216044,1750703455036,-731.99,0.00023157,2]
[367216045,1750703455046,-565.01,0.00023157,2]
[367216046,1750703455054,-490.0,0.00023157,2]
[367216047,1750703455062,-490.0,0.00023157,2]
[367216048,1750703455071,-490.0,0.00023157,2]
[367216049,1750703455080,-490.0,0.00023157,2]
[367216050,1750703455089,-490.0,0.00023157,2]
[367216051,1750703455099,-510.14,0.00023157,2]
[367216052,1750703455109,-490.0,0.00023157,2]
[367216053,1750703455119,-490.0,0.00023157,2]
[367216054,1750703455128,-490.0,0.00023157,2]
[367216055,1750703455137,-490.0,0.00023157,2]
[367216056,1750703455148,-499.5,0.00023157,2]
[367216057,1750703455157,-657.21,0.00023157,2]
[367216058,1750703455166,-206.92276457,0.00023157,2]
[367216059,1750703455175,-490.0,0.00023157,2]
[367216060,1750703455185,-490.0,0.00023157,2]
[367216061,1750703455195,-599.79,0.00023157,2]
[367216062,1750703455204,-490.0,0.00023157,2]
[367216063,1750703455213,-490.0,0.00023157,2]
[367216064,1750703455223,-528.33,0.00023157,2]
[367216065,1750703455232,-490.0,0.00023157,2]
[367216066,1750703455241,-490.0,0.00023157,2]
[367216067,1750703455250,-490.0,0.00023157,2]
[367216068,1750703455259,-490.0,0.00023157,2]
[367216069,1750703455268,-490.0,0.00023157,2]
[367216070,1750703455277,-292.75,0.00023157,2]
[367216071,1750703455286,-490.0,0.00023157,2]
[367216072,1750703455295,-490.0,0.00023157,2]
[367216074,1750703455304,-655.84,0.00023157,2]
[367216076,1750703455314,-623.87,0.00023157,2]
[367216077,1750703455323,-490.0,0.00023157,2]
[367216079,1750703455332,-338.12980576,0.00023157,2]
[367216081,1750703455342,-490.0,0.00023157,2]
[367216083,1750703455351,-490.0,0.00023157,2]
[367216085,1750703455361,-490.0,0.00023157,2]
[367216087,1750703455370,-541.83,0.00023157,2]
[367216089,1750703455379,-808.94,0.00023157,2]
[367216092,1750703455388,-490.0,0.00023157,2]
[367216094,1750703455398,-262.7,0.00023157,2]
[367216096,1750703455408,-490.0,0.00023157,2]
[367216098,1750703455418,-634.72,0.00023157,2]
[367216100,1750703455427,-598.45,0.00023157,2]
[367216102,1750703455436,-490.0,0.00023157,2]
[367216104,1750703455445,-490.0,0.00023157,2]
[367216106,1750703455454,-490.0,0.00023157,2]
[367216107,1750703455464,-490.0,0.00023157,2]
[367216110,1750703455475,-490.0,0.00023157,2]
[367216111,1750703455484,-490.0,0.00023157,2]
[367216113,1750703455494,-490.0,0.00023157,2]
[367216116,1750703455503,-490.0,0.00023157,2]
[367216118,1750703455513,-490.0,0.00023157,2]
[367216120,1750703455522,-490.0,0.00023157,2]
[367216121,1750703455531,-490.0,0.00023157,2]
[367216123,1750703455540,-490.0,0.00023157,2]
[367216125,1750703455549,-490.0,0.00023157,2]
[367216127,1750703455558,-490.0,0.00023157,2]
[367216129,1750703455568,-490.0,0.00023157,2]
[367216132,1750703455578,-490.0,0.00023157,2]
[367216133,1750703455589,-490.0,0.00023157,2]
[367216136,1750703455598,-490.0,0.00023157,2]
[367216138,1750703455608,-271.1717347,0.00023157,2]
[367216140,1750703455621,-490.0,0.00023157,2]
[367216142,1750703455631,-490.0,0.00023157,2]
[367216144,1750703455640,-490.0,0.00023157,2]
[367216146,1750703455652,-490.0,0.00023157,2]
[367216148,1750703455662,-629.66,0.00023157,2]
[367216150,1750703455673,-273.16065993,0.00023157,2]
[367216152,1750703455682,-1076.12,0.00023157,2]
[367216154,1750703455692,-490.0,0.00023157,2]
[367216156,1750703455702,-490.0,0.00023157,2]
[367216158,1750703455711,-490.0,0.00023157,2]
[367216160,1750703455721,-663.99,0.00023157,2]
[367216161,1750703455730,-490.0,0.00023157,2]
[367216164,1750703455740,-490.0,0.00023157,2]
[367216166,1750703455749,-586.81,0.00023157,2]
[367216167,1750703455758,-490.0,0.00023157,2]
[367216170,1750703455768,-490.0,0.00023157,2]
[367216172,1750703455782,-667.49,0.00023157,2]
[367216174,1750703455791,-490.0,0.00023157,2]
[367216176,1750703455801,-504.12,0.00023157,2]
[367216178,1750703455811,-490.0,0.00023157,2]
[367216180,1750703455820,-490.0,0.00023157,2]
[367216182,1750703455830,-490.0,0.00023157,2]
[367216184,1750703455839,-490.0,0.00023157,2]
[367216186,1750703455848,-490.0,0.00023157,2]
[367216188,1750703455858,-490.0,0.00023157,2]
[367216190,1750703455867,-1084.72,0.00023157,2]
[367216192,1750703455876,-490.0,0.00023157,2]
[367216194,1750703455887,-490.0,0.00023157,2]
[367216196,1750703455897,-490.0,0.00023157,2]
[367216198,1750703455906,-490.0,0.00023157,2]
[367216200,1750703455916,-490.0,0.00023157,2]
[367216202,1750703455925,-490.0,0.00023157,2]
[367216204,1750703455935,-490.0,0.00023157,2]
[367216206,1750703455945,-384.65044729,0.00023157,2]
[367216208,1750703455954,-490.0,0.00023157,2]
[367216210,1750703455964,-508.65,0.00023157,2]
[367216212,1750703455973,-490.0,0.00023157,2]
[367216215,1750703455983,-1213.24,0.00023157,2]
[367216216,1750703455992,-490.0,0.00023157,2]
[367216219,1750703456002,-490.0,0.00023157,2]
[367216221,1750703456011,-1041.2,0.00023157,2]
[367216223,1750703456021,-490.0,0.00023157,2]
[367216225,1750703456031,-1145.43,0.00023157,2]
[367216227,1750703456040,-490.0,0.00023157,2]
[367216229,1750703456050,-490.0,0.00023157,2]
[367216231,1750703456059,-551.36,0.00023157,2]
[367216233,1750703456069,-490.0,0.00023157,2]
[367216235,1750703456079,-490.0,0.00023157,2]
[367216237,1750703456088,-1426.73,0.00023157,2]
[367216239,1750703456098,-490.0,0.00023157,2]
[367216241,1750703456107,-490.0,0.00023157,2]
[367216243,1750703456117,-1468.14,0.00023157,2]
[367216245,1750703456126,-267.33544532,0.00023157,2]
[367216247,1750703456136,-490.0,0.00023157,2]
[367216249,1750703456145,-490.0,0.00023157,2]
[367216251,1750703456154,-490.0,0.00023157,2]
[367216253,1750703456164,-490.0,0.00023157,2]
[367216255,1750703456173,-490.0,0.00023157,2]
[367216257,1750703456182,-490.0,0.00023157,2]
[367216259,1750703456191,-490.0,0.00023157,2]
[367216261,1750703456201,-490.0,0.00023157,2]
[367216263,1750703456210,-490.0,0.00023157,2]
[367216265,1750703456219,-296.26416167,0.00023157,2]
[367216267,1750703456228,-1285.02,0.00023157,2]
[367216269,1750703456238,-490.0,0.00023157,2]
[367216271,1750703456247,-490.0,0.00023157,2]
[367216273,1750703456256,-490.0,0.00023157,2]
[367216275,1750703456266,-1900.28,0.00023157,2]
[367216277,1750703456275,-490.0,0.00023157,2]
[367216279,1750703456284,-854.48,0.00023157,2]
[367216281,1750703456293,-490.0,0.00023157,2]
[367216283,1750703456302,-1534.0,0.00023157,2]
[367216285,1750703456311,-490.0,0.00023157,2]
[367216287,1750703456322,-663.49,0.00023157,2]
[367216289,1750703456331,-778.53,0.00023157,2]
[367216291,1750703456341,-522.39,0.00023157,2]
[367216293,1750703456350,-490.0,0.00023157,2]
[367216295,1750703456359,-490.0,0.00023157,2]
[367216297,1750703456368,-490.0,0.00023157,2]
[367216299,1750703456378,-592.61,0.00023157,2]
[367216301,1750703456387,-490.0,0.00023157,2]
[367216303,1750703456397,-490.0,0.00023157,2]
[367216305,1750703456406,-549.39,0.00023157,2]
[367216307,1750703456416,-490.0,0.00023157,2]
[367216309,1750703456426,-490.0,0.00023157,2]
[367216311,1750703456435,-765.56,0.00023157,2]
[367216313,1750703456444,-1139.06,0.00023157,2]
[367216315,1750703456453,-490.0,0.00023157,2]
[367216317,1750703456462,-490.0,0.00023157,2]
[367216319,1750703456472,-1153.72,0.00023157,2]
[367216321,1750703456480,-490.0,0.00023157,2]
[367216323,1750703456491,-1105.31,0.00023157,2]
[367216325,1750703456500,-490.0,0.00023157,2]
[367216327,1750703456509,-490.0,0.00023157,2]
[367216329,1750703456518,-799.88,0.00023157,2]
[367216331,1750703456527,-490.0,0.00023157,2]
[367216333,1750703456537,-636.84,0.00023157,2]
[367216335,1750703456546,-490.0,0.00023157,2]
[367216337,1750703456555,-490.0,0.00023157,2]
[367216339,1750703456565,-490.0,0.00023157,2]
[367216341,1750703456574,-490.0,0.00023157,2]
[367216343,1750703456584,-1285.88,0.00023157,2]
[367216344,1750703456593,-678.69,0.00023157,2]
[367216346,1750703456602,-822.67,0.00023157,2]
[367216348,1750703456612,-207.20975485,0.00023157,2]
[367216351,1750703456626,-490.0,0.00023157,2]
[367216352,1750703456635,-490.0,0.00023157,2]
[367216355,1750703456645,-1174.8,0.00023157,2]
[367216356,1750703456656,-490.0,0.00023157,2]
[367216358,1750703456667,-490.0,0.00023157,2]
[367216360,1750703456676,-490.0,0.00023157,2]
[367216362,1750703456685,-2085.62,0.00023157,2]
[367216364,1750703456696,-1151.67,0.00023157,2]
[367216366,1750703456705,-490.0,0.00023157,2]
[367216368,1750703456714,-490.0,0.00023157,2]
[367216370,1750703456723,-490.0,0.00023157,2]
[367216372,1750703456733,-752.98,0.00023157,2]
[367216374,1750703456742,-781.03,0.00023157,2]
[367216376,1750703456751,-700.34,0.00023157,2]
[367216378,1750703456760,-652.46,0.00023157,2]
[367216380,1750703456770,-490.0,0.00023157,2]
[367216383,1750703456780,-599.02,0.00023157,2]
[367216385,1750703456789,-490.0,0.00023157,2]
[367216387,1750703456799,-969.39,0.00023157,2]
[367216389,1750703456808,-490.0,0.00023157,2]
[367216391,1750703456817,-490.0,0.00023157,2]
[367216393,1750703456826,-649.37,0.00023157,2]
[367216395,1750703456836,-711.09,0.00023157,2]
[367216397,1750703456846,-810.7,0.00023157,2]
[367216399,1750703456856,-490.0,0.00023157,2]
[367216401,1750703456865,-955.54,0.00023157,2]
[367216403,1750703456875,-637.11,0.00023157,2]
[367216405,1750703456884,-490.0,0.00023157,2]
[367216407,1750703456893,-490.0,0.00023157,2]
[367216408,1750703456905,-277.64362529,0.00023157,2]
[367216411,1750703456915,-151.0,0.00023157,7]
[367216413,1750703456923,-151.0,0.00023157,7]
[367216415,1750703456933,-723.04,0.00023157,2]
[367216417,1750703456942,-490.0,0.00023157,2]
[367216419,1750703456952,-490.0,0.00023157,2]
[367216421,1750703456962,-490.0,0.00023157,2]
[367216423,1750703456971,-1154.11,0.00023157,2]
[367216425,1750703456980,-490.0,0.00023157,2]
[367216427,1750703456990,-490.0,0.00023157,2]
[367216429,1750703456999,-580.3,0.00023157,2]
[367216430,1750703457008,-734.2,0.00023157,2]
[367216432,1750703457019,-490.0,0.00023157,2]
[367216435,1750703457029,-526.31,0.00023157,2]
[367216437,1750703457038,-490.0,0.00023157,2]
[367216439,1750703457047,-1012.02,0.00023157,2]
[367216441,1750703457056,-853.58,0.00023157,2]
[367216443,1750703457065,-1468.04,0.00023157,2]
[367216445,1750703457074,-490.0,0.00023157,2]
[367216447,1750703457083,-490.0,0.00023157,2]
[367216449,1750703457093,-490.0,0.00023157,2]
[367216451,1750703457102,-490.0,0.00023157,2]
[367216453,1750703457112,-490.0,0.00023157,2]
[367216455,1750703457121,-490.0,0.00023157,2]
[367216457,1750703457130,-490.0,0.00023157,2]
[367216459,1750703457140,-490.0,0.00023157,2]
[367216461,1750703457150,-490.0,0.00023157,2]
[367216463,1750703457160,-1156.17,0.00023157,2]
[367216465,1750703457170,-1710.72,0.00023157,2]
[367216467,1750703457180,-1063.33,0.00023157,2]
[367216469,1750703457190,-548.27,0.00023157,2]
[367216471,1750703457199,-490.0,0.00023157,2]
[367216473,1750703457210,-490.0,0.00023157,2]
[367216475,1750703457219,-8830.8,0.00023157,2]
[367216477,1750703457229,-490.0,0.00023157,2]
[367216479,1750703457239,-752.28,0.00023157,2]
[367216481,1750703457250,-1244.24,0.00023157,2]
[367216483,1750703457260,-1000.0,0.00023157,2]
[367216485,1750703457269,-302.1325839,0.00023157,2]
[367216487,1750703457279,-490.0,0.00023157,2]
[367216490,1750703457289,-1183.32,0.00023157,2]
[367216492,1750703457299,-490.0,0.00023157,2]
[367216494,1750703457309,-490.0,0.00023157,2]
[367216496,1750703457319,-490.0,0.00023157,2]
[367216498,1750703457329,-1194.43,0.00023157,2]
[367216500,1750703457339,-490.0,0.00023157,2]
[367216502,1750703457349,-1482.51,0.00023157,2]
[367216504,1750703457358,-490.0,0.00023157,2]
[367216506,1750703457367,-589.9,0.00023157,2]
[367216508,1750703457377,-1565.94,0.00023157,2]
[367216510,1750703457387,-507.92,0.00023157,2]
[367216512,1750703457400,-490.0,0.00023157,2]
[367216514,1750703457410,-1613.24,0.00023157,2]
[367216516,1750703457420,-490.0,0.00023157,2]
[367216518,1750703457430,-490.0,0.00023157,2]
[367216520,1750703457442,-840.63,0.00023157,2]
[367216522,1750703457451,-1982.72,0.00023157,2]
[367216524,1750703457462,-763.03,0.00023157,2]
[367216526,1750703457472,-11378.11,0.00023157,2]
[367216528,1750703457482,-2744.42,0.00023157,2]
[367216530,1750703457494,-490.0,0.00023157,2]
[367216532,1750703457505,-1026.4,0.00023157,2]
[367216534,1750703457516,-431.822114,0.00023157,7]
[367216536,1750703457525,-496.69,0.00023157,2]
[367216538,1750703457536,-5482.74,0.00023157,2]
[367216540,1750703457546,-490.0,0.00023157,2]
[367216542,1750703457555,-571.35,0.00023157,2]
[367216544,1750703457566,-490.0,0.00023157,2]
[367216546,1750703457576,-431.822119,0.00023157,7]
[367216548,1750703457587,-3897.11,0.00023157,2]
[367216550,1750703457598,-565.98,0.00023157,2]
[367216552,1750703457609,-1641.05,0.00023157,2]
[367216554,1750703457623,-490.0,0.00023157,2]
[367216556,1750703457634,-1224.12,0.00023157,2]
[367216558,1750703457645,-529.6,0.00023157,2]
[367216560,1750703457656,-563.74,0.00023157,2]
[367216562,1750703457667,-957.96,0.00023157,2]
[367216564,1750703457676,-1037.71,0.00023157,2]
[367216566,1750703457686,-490.0,0.00023157,2]
[367216568,1750703457698,-4733.64,0.00023157,2]
[367216570,1750703457710,-735.3,0.00023157,2]
[367216572,1750703457720,-884.02,0.00023157,2]
[367216574,1750703457729,-3517.16,0.00023157,2]
[367216576,1750703457739,-490.0,0.00023157,2]
[367216579,1750703457750,-490.0,0.00023157,2]
[367216581,1750703457760,-490.0,0.00023157,2]
[367216583,1750703457770,-490.0,0.00023157,2]
[367216585,1750703457780,-685.64,0.00023157,2]
[367216587,1750703457789,-803.35,0.00023157,2]
[367216589,1750703457800,-490.0,0.00023157,2]
[367216591,1750703457810,-548.03,0.00023157,2]
[367216593,1750703457820,-7076.0,0.00023157,2]
[367216595,1750703457830,-1133.34,0.00023157,2]
[367216597,1750703457841,-1899.63,0.00023157,2]
[367216599,1750703457851,-1353.13,0.00023157,2]
[367216601,1750703457861,-960.01,0.00023157,2]
[367216603,1750703457870,-2157.61,0.00023157,2]
[367216605,1750703457879,-880.79,0.00023157,2]
[367216607,1750703457889,-1231.26,0.00023157,2]
[367216609,1750703457901,-2205.38,0.00023157,2]
[367216611,1750703457911,-1347.54,0.00023157,2]
[367216613,1750703457922,-490.0,0.00023157,2]
[367216615,1750703457932,-933.13,0.00023157,2]
[367216617,1750703457943,-280.0,0.00023157,2]
[367216619,1750703457954,-1237.42,0.00023157,2]
[367216621,1750703457965,-1430.76,0.00023157,2]
[367216623,1750703457975,-21410.33,0.00023157,2]
[367216625,1750703457985,-857.16,0.00023157,2]
[367216627,1750703457995,-490.0,0.00023157,2]
[367216629,1750703458007,-935.66,0.00023157,2]
[367216631,1750703458017,-1271.94,0.00023157,2]
[367216633,1750703458028,-490.0,0.00023157,2]
[367216635,1750703458040,-538.58,0.00023157,2]
[367216637,1750703458051,-1676.55,0.00023157,2]
[367216639,1750703458061,-490.0,0.00023157,2]
[367216641,1750703458072,-3083.05,0.00023157,2]
[367216644,1750703458084,-490.0,0.00023157,2]
[367216646,1750703458094,-1568.28,0.00023157,2]
[367216648,1750703458105,-490.0,0.00023157,2]
[367216650,1750703458115,-3180.99,0.00023157,2]
[367216652,1750703458126,-536.31,0.00023157,2]
[367216654,1750703458136,-490.0,0.00023157,2]
[367216656,1750703458146,-2087.14,0.00023157,2]
[367216658,1750703458156,-894.56,0.00023157,2]
[367216660,1750703458167,-632.71,0.00023157,2]
[367216662,1750703458177,-1031.51,0.00023157,2]
[367216664,1750703458187,-12146.97,0.00023157,2]
[367216666,1750703458197,-490.0,0.00023157,2]
[367216668,1750703458207,-490.52367389,0.00023157,2]
[367216670,1750703458217,-1347.76,0.00023157,2]
[367216672,1750703458227,-2159.79,0.00023157,2]
[367216674,1750703458237,-490.0,0.00023157,2]
[367216676,1750703458247,-3155.71,0.00023157,2]
[367216678,1750703458258,-490.0,0.00023157,2]
[367216680,1750703458269,-781.62,0.00023157,2]
[367216682,1750703458279,-490.0,0.00023157,2]
[367216684,1750703458288,-1473.56,0.00023157,2]
[367216686,1750703458298,-2313.35,0.00023157,2]
[367216688,1750703458309,-490.0,0.00023157,2]
[367216690,1750703458319,-3961.01,0.00023157,2]
[367216692,1750703458330,-490.0,0.00023157,2]
[367216694,1750703458340,-367.80085142,0.00023157,2]
[367216697,1750703458350,-1266.29,0.00023157,2]
[367216699,1750703458360,-2054.94,0.00023157,2]
[367216701,1750703458371,-1525.62,0.00023157,2]
[367216703,1750703458380,-490.0,0.00023157,2]
[367216704,1750703458391,-181847.22,0.00023157,2]
[367216707,1750703458402,-490.0,0.00023157,2]
[367216708,1750703458412,-490.0,0.00023157,2]
[367216710,1750703458422,-1072.4,0.00023157,2]
[367216713,1750703458433,-681.38,0.00023157,2]
[367216715,1750703458443,-1014.71,0.00023157,2]
[367216716,1750703458453,-496.91127204,0.00023157,2]
[367216718,1750703458462,-490.0,0.00023157,2]
[367216720,1750703458472,-1750.12,0.00023157,2]
[367216722,1750703458482,-490.0,0.00023157,2]
[367216724,1750703458492,-687.98,0.00023157,2]
[367216726,1750703458502,-2495.97,0.00023157,2]
[367216728,1750703458511,-538.87,0.00023157,2]
[367216730,1750703458522,-1525.37,0.00023157,2]
[367216732,1750703458533,-2157.21,0.00023157,2]
[367216734,1750703458543,-616.26,0.00023157,2]
[367216736,1750703458554,-433.06627564,0.00023157,2]
[367216738,1750703458564,-556.54,0.00023157,2]
[367216740,1750703458575,-1438.62,0.00023157,2]
[367216743,1750703458587,-4720.44,0.00023157,2]
[367216745,1750703458598,-490.0,0.00023157,2]
[367216747,1750703458611,-1521.01,0.00023157,2]
[367216749,1750703458625,-490.0,0.00023157,2]
[367216751,1750703458635,-2401.16,0.00023157,2]
[367216753,1750703458645,-650.69,0.00023157,2]
[367216755,1750703458665,-292.2510235,0.00023157,2]
[367216757,1750703458675,-902.66,0.00023157,2]
[367216759,1750703458685,-5321.28,0.00023157,2]
[367216761,1750703458696,-1510.41,0.00023157,2]
[367216763,1750703458707,-1331.03,0.00023157,2]
[367216765,1750703458720,-490.0,0.00023157,2]
[367216767,1750703458731,-642.67,0.00023157,2]
[367216769,1750703458741,-490.0,0.00023157,2]
[367216771,1750703458752,-490.0,0.00023157,2]
[367216773,1750703458763,-1530.51,0.00023157,2]
[367216775,1750703458774,-3059.43,0.00023157,2]
[367216777,1750703458785,-490.0,0.00023157,2]
[367216779,1750703458795,-1185.68,0.00023157,2]
[367216781,1750703458805,-596.82,0.00023157,2]
[367216783,1750703458816,-490.0,0.00023157,2]
[367216785,1750703458827,-5716.73,0.00023157,2]
[367216787,1750703458836,-710.5,0.00023157,2]
[367216789,1750703458846,-490.0,0.00023157,2]
[367216791,1750703458856,-2097.94,0.00023157,2]
[367216793,1750703458866,-490.0,0.00023157,2]
[367216795,1750703458876,-490.0,0.00023157,2]
[367216798,1750703458886,-640.57,0.00023157,2]
[367216799,1750703458896,-1807.14,0.00023157,2]
[367216801,1750703458910,-490.0,0.00023157,2]
[367216803,1750703458920,-3098.84,0.00023157,2]
[367216805,1750703458931,-1416.1331638,0.00023158,2]
[367216807,1750703458941,-500.0,0.00023158,2]
[367216809,1750703458952,-500.0,0.00023158,2]
[367216811,1750703458962,-500.0,0.00023158,2]
[367216813,1750703458972,-500.0,0.00023158,2]
[367216815,1750703458982,-500.0,0.00023158,2]
[367216817,1750703458992,-500.0,0.00023158,2]
[367216819,1750703459002,-764.78,0.00023158,2]
[367216821,1750703459012,-764.78,0.00023158,2]
[367216823,1750703459021,-198884.45020763,0.00023159,2]
[367216825,1750703459031,-490.0,0.00023159,2]
[367216827,1750703459041,-151.0,0.00023159,2]
[367216829,1750703459051,-151.0,0.00023159,2]
[367216830,1750703459062,-500.0,0.00023173,2]
[367216832,1750703459072,-500.0,0.00023173,2]
[367216834,1750703459081,-160.23549365,0.00023173,2]
[367216835,1750703459091,-500.0,0.00023173,2]
[367216837,1750703459102,-500.0,0.00023173,2]
[367216839,1750703459111,-476.0,0.00023177,2]
[367216841,1750703459122,-1416.1331638,0.00023187,2]
[367216843,1750703459131,-903.0,0.00023191,2]
[367216845,1750703459144,-500.0,0.00023199,2]
[367216847,1750703459156,-764.78,0.00023199,2]
[367216849,1750703459167,-2039.67028112,0.000232,3]
[367216851,1750703459176,-476.0,0.00023204,2]
[367216853,1750703459185,-1416.1331638,0.00023215,2]
[367216854,1750703459195,-476.0,0.00023232,2]
[367216856,1750703459204,-1416.1331638,0.00023244,2]
[367216858,1750703459213,-4498.52751194,0.00023254,2]
[367216860,1750703459223,-764.78,0.00023256,2]
[367216862,1750703459233,-682.42,0.00023257,2]
[367216864,1750703459242,-490.0,0.00023257,2]
[367216866,1750703459251,-490.0,0.00023257,2]
[367216867,1750703459261,-490.0,0.00023257,2]
[367216869,1750703459271,-490.0,0.00023257,2]
[367216871,1750703459280,-490.0,0.00023257,2]
[367216873,1750703459290,-741.25,0.00023257,2]
[367216875,1750703459299,-798.77,0.00023257,2]
[367216877,1750703459309,-490.0,0.00023257,2]
[367216879,1750703459318,-490.0,0.00023257,2]
[367216880,1750703459327,-806.26,0.00023257,2]
[367216882,1750703459337,-490.0,0.00023257,2]
[367216883,1750703459346,-490.0,0.00023257,2]
[367216884,1750703459356,-490.0,0.00023257,2]
[367216885,1750703459367,-490.0,0.00023257,2]
[367216886,1750703459376,-677.46,0.00023257,2]
[367216887,1750703459387,-491.63655973,0.00023257,2]
[367216888,1750703459397,-490.0,0.00023257,2]
[367216889,1750703459409,-490.0,0.00023257,2]
[367216890,1750703459419,-300.0,0.00023257,2]
[367216891,1750703459429,-490.0,0.00023257,2]
[367216913,1750703459748,-925.59,0.00023257,2]
[367216915,1750703459762,-490.0,0.00023257,2]
[367216917,1750703459772,-490.0,0.00023257,2]
[367216919,1750703459782,-951.08,0.00023257,2]
[367216922,1750703459793,-639.03,0.00023257,2]
[367216924,1750703459802,-915.4,0.00023257,2]
[367216925,1750703459812,-490.0,0.00023257,2]
[367216927,1750703459823,-490.0,0.00023257,2]
[367216929,1750703459832,-490.0,0.00023257,2]
[367216931,1750703459842,-490.0,0.00023257,2]
[367216933,1750703459851,-490.0,0.00023257,2]
[367216935,1750703459861,-490.0,0.00023257,2]
[367216938,1750703459872,-490.0,0.00023257,2]
[367216939,1750703459882,-490.0,0.00023257,2]
[367216942,1750703459892,-490.0,0.00023257,2]
[367216944,1750703459901,-490.0,0.00023257,2]
[367216946,1750703459911,-814.15,0.00023257,2]
[367216948,1750703459921,-500.0,0.00023257,2]
[367216950,1750703459931,-490.0,0.00023257,2]
[367216951,1750703459940,-728.44,0.00023257,2]
[367216953,1750703459950,-490.0,0.00023257,2]
[367216955,1750703459959,-501.91,0.00023257,2]
[367216957,1750703459969,-490.0,0.00023257,2]
[367216959,1750703459979,-490.0,0.00023257,2]
[367216961,1750703459989,-490.0,0.00023257,2]
[367216963,1750703459998,-1082.1,0.00023257,2]
[367216965,1750703460007,-490.0,0.00023257,2]
[367216967,1750703460018,-490.0,0.00023257,2]
[367216969,1750703460027,-490.0,0.00023257,2]
[367216971,1750703460037,-721.56,0.00023257,2]